[Event "44th Chess Olympiad Women 2022"]
[Site "Chennai"]
[Date "2022.08.06"]
[Round "8.1"]
[White "Vaishali R"]
[Black "Ushenina, Anna"]
[Result "1/2-1/2"]
[WhiteElo "2442"]
[BlackElo "2423"]
[Annotator "TA"]
[PlyCount "119"]
[EventDate "2022.??.??"]
[TimeControl "60"]

{[%evp 14,119,16,12,26,19,31,14,11,-15,29,33,37,31,36,22,13,8,25,0,0,0,11,0,16,
14,18,23,23,29,20,4,2,1,6,0,0,-82,-36,-56,-46,-101,-82,-73,0,-97,0,-77,-4,-52,
-29,-105,-103,-104,-103,-106,-98,-97,-97,-103,-95,-102,-97,-93,-55,-75,0,-107,
-95,-83,-16,-16,-14,-14,-16,-60,-60,-75,-75,-111,-108,-98,-85,-83,-50,-59,-41,
-68,-16,-16,-20,-22,-16,-21,0,0,0,-16,-16,-64,-4,-4,0,-64,0,-24,0,-41]} 1. e4 {
[%emt 0:00:42]} e5 {[%emt 0:00:24]} 2. Nf3 {[%emt 0:00:06]} Nf6 {[%emt 0:00:21]
} 3. Nxe5 {[%emt 0:00:31]} d6 {[%emt 0:00:04]} 4. Nf3 {[%emt 0:00:04]} Nxe4 {
[%emt 0:00:06]} 5. Nc3 {[%emt 0:00:18]} Nxc3 {[%emt 0:00:08]} 6. dxc3 {[%emt 0:
00:00]} Nc6 {[%emt 0:00:04]} 7. Bf4 {[%emt 0:01:08]} Be7 {[%emt 0:12:01]} 8.
Qd2 {[%emt 0:00:20]} Bf5 {[%emt 0:01:23] C42: Petroff Defence: 3 Nxe5 and
unusual White 3rd moves.} 9. O-O-O {[%emt 0:02:16]} Qd7 {[%emt 0:04:32]} 10.
Bb5 {[%emt 0:24:55]} O-O {[%emt 0:19:45] [#]} 11. Ne5 $146 {[%emt 0:28:33]} ({
Predecessor:} 11. Nd4 a6 12. Ba4 b5 13. Bb3 Nxd4 14. cxd4 Bf6 15. Rhe1 a5 16.
a3 b4 17. a4 {1-0 (42) Gatineau,Y (2401)-Gabitova,D (1671) Tornelo INT 2021})
11... Qe8 {[%emt 0:13:45]} 12. Nxc6 {[%emt 0:01:47]} bxc6 {[%emt 0:00:02]} 13.
Ba4 {[%emt 0:00:17]} Bd7 {[%emt 0:07:48]} 14. h4 {[%emt 0:04:19]} (14. Rhe1 $5
{[%cal Rd2e2]}) 14... c5 {[%emt 0:02:50]} 15. Bxd7 {[%emt 0:00:32]} Qxd7 {
[%emt 0:00:01]} 16. Bg5 {[%emt 0:11:21]} Rfe8 {[%emt 0:04:36]} 17. Qd5 {
[%emt 0:04:51]} Qe6 {[%emt 0:15:53]} 18. Qxe6 {[%emt 0:10:17]} fxe6 {[%emt 0:
00:00]} 19. Rde1 {[%emt 0:00:36]} Bxg5+ {[%emt 0:02:38]} 20. hxg5 $11 {[%emt 0:
00:00] Endgame KRR-KRR} Rf8 {[%emt 0:00:08]} 21. f3 {[%emt 0:02:16]} e5 {
[%emt 0:01:59]} 22. Rh5 {[%emt 0:03:28]} Rf5 {[%emt 0:00:44]} 23. Reh1 {
[%emt 0:00:25]} Kf7 {[%emt 0:01:05]} 24. Kd2 {[%emt 0:01:21]} Kg6 {[%emt 0:00:
00]} 25. Ke3 {[%emt 0:00:43]} (25. Rxh7 $11 Rxg5 26. R7h2) 25... Rh8 {[%emt 0:
00:00]} (25... h6 $17) 26. Ke4 {[%emt 0:01:38]} c6 {[%emt 0:00:55]} 27. c4 {
[%emt 0:00:32]} (27. R5h4 $15) 27... Rf4+ {[%emt 0:01:28]} 28. Kd3 {[%emt 0:00:
00]} Rf5 {[%emt 0:01:28]} 29. Ke4 $1 {[%emt 0:00:34]} Rf4+ {[%emt 0:02:32]} 30.
Kd3 {[%emt 0:00:01]} d5 {[%emt 0:00:23]} ({Black should try} 30... Rd4+ $17 31.
Kc3 e4 32. fxe4 Rxe4) 31. b3 {[%emt 0:00:23]} (31. R5h4 $1 $11 {might be
stronger.}) 31... dxc4+ {[%emt 0:00:34]} 32. bxc4 {[%emt 0:00:02]} (32. Ke3 $11
{remains equal.}) 32... Rd8+ $17 {[%emt 0:00:08]} 33. Kc3 {[%emt 0:00:06]} Rdd4
{[%emt 0:00:24]} 34. Rxh7 {[%emt 0:00:42]} Rxc4+ {[%emt 0:00:02]} 35. Kb2 {
[%emt 0:01:26]} Rb4+ {[%emt 0:01:10]} 36. Kc1 {[%emt 0:00:49]} Ra4 {[%emt 0:00:
00]} 37. Kb2 {[%emt 0:00:50]} Rfb4+ {[%emt 0:00:09]} 38. Ka1 {[%emt 0:00:03]}
Rc4 {[%emt 0:01:15]} (38... Kxg5 39. Rxg7+ Kf6 40. Rc7 $14) 39. Kb2 {[%emt 0:
00:00]} Rcb4+ {[%emt 0:00:26]} 40. Ka1 {[%emt 0:00:02]} c4 {[%emt 0:00:34]} (
40... Kxg5 41. Rxg7+ Kf6 42. Rc7 $14) 41. R7h4 {[%emt 0:06:03]} c3 {[%emt 0:00:
00]} (41... Kxg5 $6 42. Rg4+ Kf6 43. Rhh4 $11) (41... Rb5 $17 {Hoping for ...
Rba5.} 42. R1h3 Rba5) 42. Rxb4 $11 {[%emt 0:04:37]} Rxb4 {[%emt 0:00:01] KR-KR}
43. Re1 $1 {[%emt 0:00:48]} Rb2 {[%emt 0:03:49]} 44. Re2 {[%emt 0:06:44]} Kf5 {
[%emt 0:03:15]} 45. g3 {[%emt 0:01:10]} g6 {[%emt 0:05:01]} (45... Kxg5 46.
Rxe5+ Kg6 47. Re6+ Kf5 48. Rxc6 $11) 46. a3 {[%emt 0:01:48]} c5 {[%emt 0:03:01]
} ({Don't play} 46... Kxg5 $6 47. Rxe5+ Kf6 48. Rc5 $11) 47. a4 {[%emt 0:03:38]
} c4 {[%emt 0:12:03]} ({Resist} 47... Kxg5 48. Rxe5+ Kf6 49. Rxc5 $11) 48. a5 {
[%emt 0:04:56]} Rb5 {[%emt 0:00:19]} ({Much weaker is} 48... Kxg5 $6 49. Rxe5+
Kf6 50. Rc5 $11) 49. Re3 {[%emt 0:00:31]} Rxa5+ {[%emt 0:00:27]} 50. Kb1 {
[%emt 0:00:02]} Kxg5 {[%emt 0:03:38]} (50... Rd5 $15) 51. Rxc3 {[%emt 0:00:03]}
Rc5 {[%emt 0:00:22]} 52. Re3 {[%emt 0:04:11]} Kf5 {[%emt 0:01:46]} 53. Kb2 $1 {
[%emt 0:00:45]} Ra5 {[%emt 0:00:16]} 54. Re4 {[%emt 0:02:02]} Ra4 {[%emt 0:00:
00][%cal Yc4c3] [#] ...c3+! is the strong threat.} 55. Re1 {[%emt 0:00:11]} g5
{[%emt 0:00:23]} 56. Re3 {[%emt 0:00:36]} (56. Re2 $11) 56... Ra5 {[%emt 0:00:
00]} (56... Ke6 $15) 57. Re4 {[%emt 0:00:19]} Ra4 {[%emt 0:00:25][%cal Yc4c3]
aiming for ...c3+!} 58. Re3 {[%emt 0:00:22]} (58. c3 $11) 58... Ra5 {[%emt 0:
00:00]} 59. Re4 {[%emt 0:00:06]} Ra4 {[%emt 0:00:21][%cal Yc4c3]} 60. Re3 {
[%emt 0:00:22] Weighted Error Value: White=0.15 (very precise) /Black=0.21 
(precise)} 1/2-1/2

[Event "44th Chess Olympiad Women 2022"]
[Site "Chennai"]
[Date "2022.08.06"]
[Round "8.2"]
[White "Dzagnidze, Nana"]
[Black "Danielian, Elina"]
[Result "1-0"]
[WhiteElo "2531"]
[BlackElo "2441"]
[Annotator "TA"]
[PlyCount "129"]
[EventDate "2022.??.??"]
[TimeControl "60"]

{[%evp 14,129,14,16,22,18,20,14,47,41,52,52,44,36,56,48,48,34,60,68,64,56,71,
69,78,81,98,66,80,48,66,54,57,20,26,20,20,24,22,10,10,-4,10,0,7,-13,0,0,37,27,
38,47,53,49,42,34,27,0,21,37,16,35,109,108,120,0,14,20,6,0,0,0,0,0,0,0,0,0,8,8,
58,38,35,41,29,29,38,53,64,65,96,0,35,31,31,31,31,31,39,22,281,277,491,497,693,
669,29981,29982,29982,29983,29982,29983,29983,29984,29988,29989,29996,29997]} 
1. d4 {[%emt 0:00:02]} Nf6 {[%emt 0:00:26]} 2. c4 {[%emt 0:00:09]} e6 {[%emt 0:
00:00]} 3. Nf3 {[%emt 0:00:06]} d5 {[%emt 0:00:59]} 4. Nc3 {[%emt 0:00:33]} Bb4
{[%emt 0:00:12]} 5. Bg5 {[%emt 0:01:41]} h6 {[%emt 0:01:24]} 6. Bxf6 {[%emt 0:
00:00]} Qxf6 {[%emt 0:00:05]} 7. Qa4+ {[%emt 0:00:05]} Nc6 {[%emt 0:00:04]} 8.
e3 {[%emt 0:00:05]} O-O {[%emt 0:00:47] D38: Queen's Gambit Declined: Ragozin
Defence (4 Nf3 Bb4).} 9. Be2 {[%emt 0:00:10]} dxc4 {[%emt 0:04:40]} 10. O-O {
[%emt 0:00:07]} Bd6 {[%emt 0:08:00] The position is equal.} 11. Qxc4 {[%emt 0:
00:00]} a6 {[%emt 0:08:13] [#]} 12. Rac1 $146 {[%emt 0:08:48]} ({Predecessor:} 
12. Rfd1 Bd7 13. Ne4 Qg6 14. Nc5 Bc8 15. Nd3 f5 16. Nfe5 Qf6 17. Nxc6 bxc6 18.
Bf3 {1-0 (40) Fressinet,L (2693)-Inkiov,V (2465) Haguenau 2013}) 12... Bd7 {
[%emt 0:20:27]} 13. Ne4 {[%emt 0:15:45]} Qe7 {[%emt 0:02:30]} 14. a3 {[%emt 0:
00:00]} Rfc8 {[%emt 0:01:52]} 15. Nc5 {[%emt 0:10:15]} Nd8 {[%emt 0:14:51]} 16.
Nxd7 {[%emt 0:21:49]} Qxd7 {[%emt 0:00:09]} 17. Rfd1 {[%emt 0:00:03]} Qe8 {
[%emt 0:05:44]} 18. Nd2 {[%emt 0:01:30]} c6 {[%emt 0:13:34]} 19. Ne4 {[%emt 0:
00:00]} Be7 {[%emt 0:01:34]} 20. Rc2 {[%emt 0:06:23] 0x0.0005ecc66580dp-1022s
more active pieces.} Rc7 {[%emt 0:00:52]} 21. Rdc1 {[%emt 0:02:40]} Rd7 {
[%emt 0:01:54]} 22. f4 {[%emt 0:02:09]} f5 {[%emt 0:00:17]} 23. Nc5 {[%emt 0:
00:00]} Bxc5 {[%emt 0:00:05]} 24. Qxc5 {[%emt 0:00:01]} Nf7 {[%emt 0:00:31]
[%cal Yd8f7,Yf7d6,Yd6b5,Yb5c7,Yc7d5]} 25. b4 {[%emt 0:02:26]} Nd6 {[%emt 0:00:
23]} 26. Bd3 {[%emt 0:03:29]} Nb5 {[%emt 0:01:23]} 27. a4 {[%emt 0:00:00]} Nc7
{[%emt 0:00:53]} 28. Qe5 {[%emt 0:02:31]} Qe7 {[%emt 0:05:55] [#] Threatens to
win with ...Rd5.} 29. Rc5 {[%emt 0:01:06]} Rad8 {[%emt 0:00:06] Hoping for ...
Rd5.} 30. Bc4 {[%emt 0:00:06] Against Rd5} Nd5 {[%emt 0:03:44]} 31. b5 {
[%emt 0:00:56]} axb5 {[%emt 0:01:22]} 32. axb5 {[%emt 0:00:11]} cxb5 {[%emt 0:
01:09]} 33. Bxb5 {[%emt 0:02:23]} Rd6 {[%emt 0:00:09]} 34. Be2 {[%emt 0:03:44]}
Kh7 {[%emt 0:01:59]} 35. g4 {[%emt 0:01:21]} b6 {[%emt 0:00:30]} (35... Qh4 $5
{[%cal Rh4h3]}) 36. R5c2 {[%emt 0:01:14]} fxg4 {[%emt 0:00:39]} 37. Bxg4 {
[%emt 0:00:18]} Qf7 {[%emt 0:00:44]} ({Better is} 37... b5 $14) 38. Bf3 {
[%emt 0:01:32]} Nf6 {[%emt 0:00:19]} 39. f5 {[%emt 0:01:09]} (39. h3 $16) 39...
exf5 $11 {[%emt 0:00:23]} 40. Qxf5+ {[%emt 0:00:05]} Kh8 {[%emt 0:00:15]} 41.
Rc8 {[%emt 0:04:26]} Qe8 {[%emt 0:05:31]} 42. Kf2 {[%emt 0:04:14]} b5 {[%emt 0:
06:20]} 43. R1c6 {[%emt 0:08:01]} Qf8 {[%emt 0:06:11]} 44. Rxd6 {[%emt 0:12:20]
} Rxc8 {[%emt 0:00:52]} 45. Rb6 {[%emt 0:00:03][%cal Yd6b6,Yb6b4,Yb4b5]} b4 {
[%emt 0:01:24]} 46. Rxb4 {[%emt 0:00:30]} Re8 {[%emt 0:00:00]} (46... g6 $1 $11
47. Qxg6 Ng4+ 48. Qxg4 Rc2+ 49. Kg3 Qxb4) 47. Rb5 {[%emt 0:00:51]} Qa3 {
[%emt 0:02:29]} 48. Qf4 {[%emt 0:00:53]} Qa2+ {[%emt 0:00:00]} 49. Kg3 {
[%emt 0:00:07]} Qf7 {[%emt 0:02:53]} 50. h4 {[%emt 0:03:17]} Qg6+ {[%emt 0:01:
35]} 51. Kh3 {[%emt 0:00:02]} Nd7 {[%emt 0:02:06]} 52. h5 {[%emt 0:00:00]} (52.
Rb7 $16 Nf6 53. Rb8) 52... Qe6+ {[%emt 0:00:30]} 53. Kg3 {[%emt 0:00:00] Bg4
is the strong threat.} Qxe3 {[%emt 0:00:30]} 54. Qxe3 {[%emt 0:00:00]} Rxe3 $14
{[%emt 0:00:01] Endgame KRB-KRN} 55. Kf4 {[%emt 0:00:00]} Re8 {[%emt 0:00:07]}
56. Be4 {[%emt 0:00:45] Black must now prevent Bg6.} Kg8 $2 {[%emt 0:00:24] [#]
A mistake that costs the game.} (56... Rf8+ $11 57. Ke3 Nf6) 57. Bg6 $1 $18 {
[%emt 0:00:18]} Rd8 {[%emt 0:00:53]} (57... Ra8 {was worth a try.} 58. d5 Ra4+
59. Kf5 Ra6) 58. Kf5 {[%emt 0:00:57]} Nf8 {[%emt 0:01:08]} 59. d5 {[%emt 0:00:
14][%cal Yd4d5,Yd5d6]} Nxg6 {[%emt 0:00:28]} 60. hxg6 {[%emt 0:00:10] KR-KR.
White mates.} ({Not} 60. Kxg6 Kf8 $16) 60... Kf8 {[%emt 0:00:14]} 61. Ke6 {
[%emt 0:00:08]} Re8+ {[%emt 0:00:00]} 62. Kd7 {[%emt 0:00:04]} Re7+ {[%emt 0:
00:17]} 63. Kc6 {[%emt 0:00:04]} Re2 {[%emt 0:01:05]} 64. d6 {[%emt 0:00:29]}
Rc2+ {[%emt 0:00:32]} 65. Kd7 {[%emt 0:00:05] Weighted Error Value: White=0.11
(very precise) /Black=0.36} 1-0

[Event "44th Chess Olympiad Women 2022"]
[Site "Chennai"]
[Date "2022.08.06"]
[Round "8.2"]
[White "Javakhishvili, Lela"]
[Black "Sargsyan, Anna M."]
[Result "1-0"]
[WhiteElo "2476"]
[BlackElo "2378"]
[Annotator "TA"]
[PlyCount "71"]
[EventDate "2022.??.??"]
[TimeControl "60"]

{[%evp 9,71,16,4,9,28,29,30,31,89,28,45,49,95,112,116,108,105,113,135,124,149,
200,246,238,231,214,221,133,145,145,128,150,224,230,239,233,364,388,440,437,
662,648,671,662,658,658,641,642,665,447,697,707,694,678,615,604,747,744,728,
714,977,667,638,618]} 1. d4 {[%emt 0:00:04]} d5 {[%emt 0:00:11]} 2. c4 {
[%emt 0:00:10]} c6 {[%emt 0:00:09]} 3. Nf3 {[%emt 0:00:08]} Nf6 {[%emt 0:00:09]
} 4. g3 {[%emt 0:00:11]} Bf5 {[%emt 0:01:08]} 5. Nc3 {[%emt 0:00:16]} e6 {
[%emt 0:00:13]} 6. Nh4 {[%emt 0:00:14] D11: Slav Defence: 3 Nf3 sidelines and
3...Nf6 4 e3 Bg4.} Bg4 {[%emt 0:00:22]} 7. h3 {[%emt 0:00:06]} Bh5 {[%emt 0:00:
00]} 8. g4 {[%emt 0:00:15] White has an edge.} Nfd7 {[%emt 0:01:05] [#]} 9. Ng2
{[%emt 0:00:08]} (9. Qb3 $1 $16 b5 (9... b6 10. cxd5) 10. cxd5 $1 (10. gxh5
dxc4 11. Qc2 Qxh4 $11) 10... exd5 11. Nxd5 (11. gxh5 Qxh4 12. Bg2 Qxd4 $16)
11... cxd5 12. Qe3+ Qe7 13. gxh5) 9... Bg6 $11 {[%emt 0:00:05]} 10. Nf4 $1 {
[%emt 0:00:04]} dxc4 {[%emt 0:04:26]} (10... Nf6 $14 {should be considered.})
11. h4 $1 $16 {[%emt 0:01:55] aiming for h5.} h6 {[%emt 0:20:57]} 12. Nxg6 {
[%emt 0:00:15]} fxg6 {[%emt 0:00:02] [#]} 13. Qc2 $146 {[%emt 0:02:01]} ({
Predecessor:} 13. e3 Nb6 14. Qc2 Qf6 15. Bd2 Na6 16. O-O-O Nb4 17. Qe4 O-O-O
18. Kb1 Bd6 19. f4 {1-0 (63) Maciaga,M (2117)-Pazdziora,M (2211) Jastrzebia
Gora 2018}) 13... Qf6 {[%emt 0:02:14]} 14. g5 {[%emt 0:15:42] White has strong
compensation.} Qf7 {[%emt 0:01:27] [#]} 15. Rh3 $1 {[%emt 0:01:48] Black must
now prevent Rf3.} Kd8 {[%emt 0:13:20]} 16. Rf3 {[%emt 0:04:37]} Qe8 {[%emt 0:
00:08] [#]} 17. Bh3 $1 {[%emt 0:17:06]} Na6 {[%emt 0:05:10]} 18. Qe4 {[%emt 0:
01:14]} Nc7 {[%emt 0:04:29]} 19. gxh6 {[%emt 0:00:19] 0x0.001e3c693f72dp-1022s
more active pieces. The black rooks are badly placed.} gxh6 {[%emt 0:00:46]}
20. Bf4 {[%emt 0:00:58] Against g5} Bg7 {[%emt 0:09:29]} (20... g5 $16) 21.
O-O-O $18 {[%emt 0:07:22] Na4 is the strong threat.} Rf8 {[%emt 0:12:17]} 22.
Rg1 $40 {[%emt 0:07:23] White wants a kill.} g5 {[%emt 0:05:18]} (22... Rf6
$142 23. Bxc7+ Kxc7) 23. hxg5 {[%emt 0:02:25][%cal Yh4g5,Yg5g6]} h5 {[%emt 0:
02:10]} 24. g6 {[%emt 0:03:08] White is clearly winning.} Nd5 {[%emt 0:04:02]}
(24... Kc8 $142 25. Bd6 Rxf3 26. Qxf3 Nf6) 25. Bg5+ {[%emt 0:02:20]} Kc7 {
[%emt 0:00:52]} 26. Bxe6 {[%emt 0:02:31]} Nxc3 {[%emt 0:03:45]} 27. bxc3 {
[%emt 0:00:35] And now Rf7 would win.} Rxf3 {[%emt 0:04:12]} 28. exf3 {[%emt 0:
00:10][%cal Ye2f3,Yf3e4,Ye4e5]} Ne5 {[%emt 0:00:41]} 29. Bf7 {[%emt 0:07:10] A
strong pair of Bishops.} Nd3+ {[%emt 0:00:23]} (29... Nxf7 $142 30. Qxe8 Rxe8
31. gxf7 Rf8 32. Bf4+ Kd7 33. Rxg7 Ke6) 30. Kc2 {[%emt 0:02:37]} Qxe4 {[%emt 0:
00:06]} 31. fxe4 {[%emt 0:00:00]} Nxf2 {[%emt 0:00:11]} 32. Re1 {[%emt 0:03:50]
} Rh8 {[%emt 0:02:30]} 33. Bh4 {[%emt 0:00:41]} Ng4 {[%emt 0:01:56]} 34. e5 {
[%emt 0:00:56]} Nh6 {[%emt 0:00:00]} 35. Rf1 {[%emt 0:01:15]} Ng4 {[%emt 0:01:
01]} 36. Rf3 {[%emt 0:01:28] Inhibits Ne3+. Weighted Error Value: White=0.21 
(precise) /Black=0.39} 1-0

[Event "44th Chess Olympiad Women 2022"]
[Site "Chennai"]
[Date "2022.08.06"]
[Round "8.2"]
[White "Mkrtchian, Lilit"]
[Black "Batsiashvili, Nino"]
[Result "0-1"]
[WhiteElo "2362"]
[BlackElo "2466"]
[Annotator "TA"]
[PlyCount "122"]
[EventDate "2022.??.??"]
[TimeControl "60"]

{[%evp 9,122,19,23,0,30,23,24,0,0,0,0,0,0,0,0,0,23,21,55,52,33,31,35,18,32,6,0,
20,65,61,66,64,74,64,69,57,41,28,18,18,28,22,46,-17,-13,-12,0,-65,-62,-68,-22,
-40,-23,-81,-26,-127,1,0,91,12,26,-37,-38,-49,0,0,0,-42,0,-6,81,-47,0,0,0,0,7,
0,398,385,375,-283,-203,-214,-209,-698,-691,-789,-758,-1313,-1308,-1284,-1281,
-29996,-29988,-29987,-1084,-730,-711,-600,-600,-814,-777,-2567,-1838,-9987,
-5481,-6625,-6572,-3137,-1079,-6982,-7495,-12849,-569]} 1. e4 {[%emt 0:00:17]}
c5 {[%emt 0:00:36]} 2. Nf3 {[%emt 0:00:44]} Nc6 {[%emt 0:00:08]} 3. Bb5 {
[%emt 0:00:40]} e5 {[%emt 0:00:26]} 4. Bc4 {[%emt 0:12:33]} Be7 {[%emt 0:02:13]
} 5. d3 {[%emt 0:01:39]} Nf6 {[%emt 0:05:10]} 6. O-O {[%emt 0:04:05] B30:
Sicilian: 2...Nc6 3 Bb5, lines without ...g6.} O-O {[%emt 0:01:33]} 7. Re1 {
[%emt 0:03:32]} d6 {[%emt 0:04:02]} 8. c3 {[%emt 0:01:59] [#] White has an
edge.} Na5 $146 {[%emt 0:06:05]} ({Predecessor:} 8... a6 9. d4 cxd4 10. cxd4
exd4 11. Nxd4 d5 12. exd5 Nxd5 13. Bxd5 Qxd5 14. Nxc6 bxc6 15. Qxd5 cxd5 16.
Rxe7 {1-0 (27) Potapova,M (2061)-Zelenskaya,A (1662) Kolomna 2016}) 9. Bb5 {
[%emt 0:01:47]} a6 {[%emt 0:02:09]} 10. Ba4 {[%emt 0:00:05]} b5 {[%emt 0:04:26]
} 11. Bc2 {[%emt 0:00:05]} Qc7 {[%emt 0:05:31]} 12. Nbd2 {[%emt 0:01:21]} c4 {
[%emt 0:01:42]} 13. d4 {[%emt 0:02:06]} Bg4 {[%emt 0:05:04]} 14. h3 {[%emt 0:
00:00]} Bh5 {[%emt 0:00:35]} 15. Nf1 {[%emt 0:00:06]} exd4 {[%emt 0:02:30]} 16.
cxd4 {[%emt 0:02:33]} Nc6 {[%emt 0:00:07]} 17. Ng3 {[%emt 0:22:07]} Bxf3 {
[%emt 0:01:30]} 18. gxf3 {[%emt 0:00:05]} Rfe8 {[%emt 0:05:05]} 19. Be3 {
[%emt 0:04:35]} Bf8 {[%emt 0:19:12]} 20. Rc1 {[%emt 0:08:15]} Rac8 {[%emt 0:00:
00]} 21. Kh2 {[%emt 0:12:01]} g6 {[%emt 0:01:27]} 22. Rg1 {[%emt 0:00:17]} Bg7
{[%emt 0:02:08]} 23. d5 {[%emt 0:02:24]} Ne5 {[%emt 0:06:08]} 24. f4 {[%emt 0:
00:00]} Ned7 {[%emt 0:00:11]} 25. Bd4 {[%emt 0:00:45]} Kf8 {[%emt 0:03:51]} 26.
f5 {[%emt 0:02:59]} (26. Rg2 $14) 26... Bh6 $11 {[%emt 0:03:17]} 27. Qf3 {
[%emt 0:07:16][%cal Yf5g6]} Qd8 {[%emt 0:01:31]} 28. Be3 {[%emt 0:03:27]} (28.
Rcf1 $11) 28... Bxe3 $15 {[%emt 0:00:49]} 29. Qxe3 {[%emt 0:00:02]} Ng8 {
[%emt 0:00:08]} (29... Qb6 $1 $15 30. Qf4 c3 31. bxc3 Rxc3) 30. fxg6 {[%emt 0:
00:00]} hxg6 {[%emt 0:00:08]} 31. Ne2 {[%emt 0:00:24]} (31. f4 $11) 31... Qf6 {
[%emt 0:01:59]} (31... Qh4 $17) 32. Nd4 {[%emt 0:00:14]} (32. Rcd1 $11) 32...
Nc5 {[%emt 0:00:51]} ({Black should try} 32... Nb6 $17 {Threatens to win with .
..Nxd5.} 33. Qd2 (33. Rg5 c3 $15) 33... c3 34. bxc3 Nc4) 33. Rg3 {[%emt 0:00:
00]} Rc7 {[%emt 0:05:13] [#]} (33... Ne7 $11) 34. Rd1 {[%emt 0:00:35]} (34.
Rcg1 $1 $16) 34... Qh4 {[%emt 0:04:20]} 35. f3 {[%emt 0:00:46]} ({Better is} 
35. Rdg1 $11) 35... Nf6 {[%emt 0:01:59]} 36. Qd2 {[%emt 0:00:30]} Re5 {[%emt 0:
00:00]} ({Don't take} 36... c3 37. bxc3 Ncd7 38. Rf1 $14) (36... Ncd7 $15) 37.
Nc6 $11 {[%emt 0:00:26]} Rh5 {[%emt 0:00:20]} 38. Rdg1 {[%emt 0:00:35]} Nfd7 {
[%emt 0:00:55]} 39. Qe3 {[%emt 0:00:31]} Qf6 {[%emt 0:00:53] [#]} (39... Ne5
$11 {remains equal.}) 40. Nd4 {[%emt 0:00:33]} (40. f4 $1 $16) 40... Rc8 {
[%emt 0:00:31]} (40... Rh4 $1 $15) 41. f4 {[%emt 0:02:16]} Re8 {[%emt 0:07:58]
Strongly threatening ...Rxd5.} 42. f5 $1 {[%emt 0:07:50][%cal Rf5g6]} Ne5 {
[%emt 0:10:08]} 43. R1g2 {[%emt 0:06:32] Hoping for fxg6.} Ned3 $2 {[%emt 0:00:
00]} (43... g5 $11 {and Black stays safe.}) 44. Bxd3 $18 {[%emt 0:00:00]} cxd3
{[%emt 0:00:07]} 45. Rg4 {[%emt 0:05:38] [#]} (45. fxg6 $18 {was the only
winning move.} Rxe4 46. Qf3 Qxf3 47. Rxf3) 45... Rxe4 $1 {[%emt 0:03:57]} 46.
Rxe4 {[%emt 0:00:21]} Nxe4 {[%emt 0:00:01] Really sharp!} 47. Qxd3 {[%emt 0:07:
02]} (47. Qxe4 Rh4 48. Qxd3 (48. Rg4 $2 d2 $19) 48... Rxd4 49. Qe3) 47... Qe5+
$19 {[%emt 0:00:17]} 48. Kg1 {[%emt 0:00:00]} Ng5 {[%emt 0:00:36]} 49. Rg3 {
[%emt 0:00:38] [#]} Nxh3+ $1 {[%emt 0:00:44]} 50. Rxh3 {[%emt 0:00:18]} Rxh3 {
[%emt 0:00:01] Endgame KQR-KQN} 51. Qe3 {[%emt 0:00:14]} Rg3+ 52. Qxg3 {
[%emt 0:00:31]} Qxd4+ {[%emt 0:07:35] KQ-KQ} (52... Qxg3+ $142 53. Kf1 Qf4+ 54.
Kg2 Qg4+ 55. Kf2 Qxd4+ 56. Kg2 gxf5 57. Kf3 f4 58. b3 Qe3+ 59. Kg4 Qg3+ 60. Kf5
f3 61. b4 f2 62. Ke4 f1=Q 63. Kd4 Qff4#) 53. Kf1 {Black is clearly winning.}
Qd1+ {[%emt 0:00:00]} 54. Kf2 {[%emt 0:00:15]} Qd2+ {[%emt 0:00:00]} 55. Kf1 {
[%emt 0:00:07]} Qc1+ {[%emt 0:00:00]} 56. Ke2 {[%emt 0:01:26]} Qxb2+ {[%emt 0:
00:00]} 57. Kd1 {[%emt 0:00:01]} Qb1+ {[%emt 0:00:00]} 58. Kd2 {[%emt 0:00:03]}
Qxa2+ {[%emt 0:00:00]} 59. Kc1 {[%emt 0:00:03]} Qc4+ {[%emt 0:00:00]} 60. Kb2 {
[%emt 0:00:04]} Qxd5 {[%emt 0:00:00]} 61. fxg6 {[%emt 0:01:34]} fxg6 {[%emt 0:
00:00] Weighted Error Value: White=1.05/Black=0.56} 0-1